Cogmind - Beta 14 @@@ ROGUE MODE // 2024.12.14 @ 13:58:56 Player: GreenBlaze Result: Destroyed by Y-54 Guardian with Flak Gun Performance ------------- Evolutions (3) 1500 Regions Visited (6) 1200 Robots Destroyed (68) 340 Value Destroyed (2089) 2089 Prototype IDs (6) 120 Alien Tech Used (0) 0 Bonus (193) 193 TOTAL SCORE: 5442 Bonus ------- High Alert Combat Kills 44 Follower Combat Kills 181 Friendly Fire -32 Cogmind --------- Core Integrity 0/700 Matter 273/300 Energy 343/350 System Corruption 10% Temperature Cool (18) Movement Rolling (90) Location -7/Storage Parts ------- > --- POWER (4) -------- Light Nuclear Core Improved Deuterium Engine > --- PROPULSION (3) --- Aluminum Leg Wheel Compact Wheel > --- UTILITY (3) ------ Advanced Weight Redist. System Recoil Stabilizer Reaction Control System > --- WEAPON (3) ------- EM Shotgun Impact Mace > --- INVENTORY (5) ---- Light Treads Melee Analysis Suite Reaction Control System Precision Grenade Launcher Peak State ------------ > --- POWER ------------ Deuterium Engine Light Deuterium Engine Micro Nuclear Core > --- PROPULSION ------- Carbon-fiber Leg Gravmag System Gravmag System > --- UTILITY ---------- Improved Terrain Scanner Target Analyzer Improved Field Recycling Unit > --- WEAPON ----------- Heavy EM Shotgun High-powered Shotgun High-powered Shotgun > --- INVENTORY -------- Kinecellerator ECM Suite High-powered Shotgun Remote Datajack [Rating: 42] Favorites ----------- Power Ion Engine Engine Ion Engine Power Core Light Nuclear Core Propulsion Light Treads Treads Light Treads Leg Aluminum Leg Wheel Compact Wheel Hover Unit Gravmag System Flight Unit Improved Cesium-ion Thruster Utility Improved Field Recycling Unit Device Improved Field Recycling Unit Storage Small Battery Processor Target Analyzer Hackware System Shield Protection Light Armor Plating Weapon High-powered Shotgun Energy Gun Heavy EM Shotgun Energy Cannon Advanced Beam Cannon Ballistic Gun High-powered Shotgun Ballistic Cannon Advanced Assault Cannon Launcher Grenade Launcher Special Weapon Remote Datajack Impact Weapon Impact Mace Slashing Weapon Mining Claw Build | -11 -10 -10 -9 -8 -7 -7 ------- Run | Yrd Mat Min Mat Mat Fac Sto Slots Evolved 6 | . . . 2 2 2 . Power 3 | . . . 1 1 1 . Propulsion 1 | . . . 1 . . . Utility 1 | . . . . 1 . . Weapon 1 | . . . . . 1 . Parts Attached 88 | 5 4 9 7 19 22 22 Power 13 | 1 . 1 2 2 3 4 Engine 9 | 1 . 1 2 . 2 3 Core 4 | . . . . 2 1 1 Reactor . | . . . . . . . Propulsion 21 | 2 . 3 2 3 5 6 Treads 5 | . . 2 2 1 . . Leg 8 | 2 . 1 . 2 2 1 Wheel 3 | . . . . . . 3 Hover 3 | . . . . . 3 . Flight 2 | . . . . . . 2 Utility 22 | . 1 4 1 7 3 6 Device 9 | . . 1 . 1 2 5 Storage 1 | . 1 . . . . . Processor 1 | . . . . . 1 . Hackware 1 | . . . . 1 . . Protection 10 | . . 3 1 5 . 1 Artifact . | . . . . . . . Weapon 32 | 2 3 1 2 7 11 6 Energy Gun 9 | 2 . . . 3 2 2 Energy Cannon 2 | . . . 1 . . 1 Ballistic Gun 8 | . . . 1 1 5 1 Ballistic Cannon 1 | . . . . . 1 . Launcher 6 | . 1 1 . 2 2 . Special Weapon 4 | . 2 . . 1 . 1 Impact Weapon 1 | . . . . . . 1 Slashing Weapon 1 | . . . . . 1 . Piercing Weapon . | . . . . . . . Special Melee Weapon . | . . . . . . . Unidentified Prototypes 6 | . . . 1 2 . 3 Parts Lost 46 | . 6 . . 16 7 17 Power 9 | . 1 . . 3 1 4 Propulsion 8 | . 2 . . 2 2 2 Utility 13 | . 1 . . 6 2 4 Weapon 16 | . 2 . . 5 2 7 Highest Loss Streak 7 | . 6 . . 6 2 7 To Critical Strikes . | . . . . . . . Average Slot Usage (%) 73 | . 78 76 87 72 76 57 Engine 10 | . 13 13 19 10 8 4 Core 3 | . . . . 2 7 4 Treads 8 | . . 17 30 18 1 . Leg 8 | . 26 10 . 3 9 7 Hover 2 | . . . . . 7 . Device 11 | . . 13 11 6 14 11 Processor 1 | . . . . . 4 . Protection 5 | . . 5 11 14 2 . Energy Gun 3 | . 12 . . 3 3 2 Energy Cannon 1 | . . . 5 5 . 1 Ballistic Gun 5 | . . . 4 4 8 8 Launcher 4 | . 8 14 5 1 4 . Peak Build Rating 42 | 5 6 6 14 20 42 31 Average Rating 19 | 3 5 5 10 15 30 21 On Entrance 10 | . 5 . 6 14 19 27 Naked Turns 4 | . 2 2 . . . . Heaviest Build 43 | 6 8 12 23 30 43 37 Greatest Support 60 | 20 20 40 60 60 27 41 Greatest Overweight (x) 9 | . . 1 . 9 9 4 Average Overweight (x) . | . . . . . 1 . Largest Inventory Capacity 5 | 5 5 5 5 5 5 5 Average Capacity 5 | 5 5 5 5 5 5 5 Most Carried 5 | 2 5 5 5 5 5 5 Average Carried 2 | . 2 1 3 3 3 2 Final Capacity 5 | 5 5 5 5 5 5 5 Final Carried 5 | 1 5 3 4 3 3 4 Class Distribution -------------------- 53% | Mutant 27% | Scavenger-Mutant 14% | Scavenger-Gunner Dominant Class ---------------- Mutant | -10/Materials Mutant | -10/Mines Mutant | -9/Materials Mutant | -8/Materials Scavenger-Mutant | -7/Factory Mutant | -7/Storage Resources | -11 -10 -10 -9 -8 -7 -7 ----------- Run | Yrd Mat Min Mat Mat Fac Sto Matter Collected 1340 | 250 . 96 96 229 371 298 Remotely . | . . . . . . . Salvage Created 2099 | 34 . 71 92 672 371 859 Parts 128 | 3 . 6 9 52 23 35 Haulers Intercepted 2 | . . . . 1 . 1 Recyclers Shooed 4 | . . . 1 1 . 2 Parts Field Recycled 20 | . . . . . 20 . Retrieved Matter 265 | . . . . . 265 . Parts Self-Destructed . | . . . . . . . Prevented . | . . . . . . . Kills | -11 -10 -10 -9 -8 -7 -7 ------- Run | Yrd Mat Min Mat Mat Fac Sto Combat Hostiles Destroyed 49 | 1 . 4 2 19 11 12 Melee 6 | . . . . 4 . 2 Guns 17 | 1 . . . 4 4 8 Cannons 7 | . . . 2 1 2 2 AOE 19 | . . 4 . 10 5 . Classes Destroyed 12 | 1 . 2 2 4 2 1 Worker 2 | . . . . 1 1 . Builder 4 | . . . 1 3 . . Hauler 2 | . . . . 1 . 1 Recycler 8 | . . . 1 4 . 3 Mechanic 1 | . . . . . . 1 Watcher 2 | . . . . . 2 . Swarmer 15 | . . 3 2 6 1 3 Grunt 20 | 1 . . . 8 5 6 Brawler 1 | . . . . 1 . . Duelist 2 | . . . . 2 . . Sentry 6 | . . 1 . 2 1 2 Programmer 5 | . . . . . 4 1 Best Kill Streak 16 | 1 . 3 2 16 4 4 Combat Bots Only 9 | 1 . 3 2 9 4 2 Max Kills in Single Turn 5 | 1 . 3 1 5 3 1 Gunslinging . | . . . . . . . Exploded 3 | . . 3 . 2 3 . Melee 1 | . . . . 1 . 1 Uniques/NPCs Destroyed . | . . . . . . . Combat | -11 -10 -10 -9 -8 -7 -7 -------- Run | Yrd Mat Min Mat Mat Fac Sto Hostile Shots Fired 593 | 4 36 12 8 160 110 263 Missed 181 | . 7 4 4 39 33 94 Damage Taken 5623 | 43 370 82 119 1932 979 2098 Core 1166 | 10 78 28 14 335 166 535 Absorbed by Shields . | . . . . . . . Core Remaining (%) 71 | 96 . 53 96 39 . . Volleys Fired 134 | 3 4 3 7 35 27 55 Largest 3 | 2 2 1 2 2 3 2 Hottest 200 | 80 200 30 93 126 100 93 Shots Fired 227 | 6 5 3 13 56 58 86 Gun 154 | 6 . . 6 24 45 73 Cannon 35 | . . . 6 11 6 12 Launcher 25 | . . 3 1 14 7 . Special 13 | . 5 . . 7 . 1 Kinetic 108 | . . . 6 12 48 42 Thermal 77 | 3 5 . 6 30 . 33 Explosive 25 | . . 3 1 14 7 . Electromagnetic 16 | 3 . . . . 3 10 Robot Hit Streak 12 | 4 2 5 1 12 5 7 Robot Miss Streak 5 | 1 1 . 3 2 5 5 Penetration Max . | . . . . . . . Secondary Targets 1 | . . . . . 1 . Max Gunslinging Chain 1 | . . . . . 1 . Shots Hit Robots 158 | 4 3 3 3 39 33 73 Core Hits 121 | 2 . 7 5 38 32 37 Critical Kills 1 | . . . . . 1 . Critical Parts Destroyed 2 | . . . . 1 . 1 Critical Strikes 3 | . . . . 1 1 1 Destroy 3 | . . . . 1 1 1 Melee Attacks 27 | . . . . . 2 25 Impact 1 | . . . . . . 1 Slashing 26 | . . . . . 2 24 Piercing . | . . . . . . . Sneak Attacks 6 | . . . . . 2 4 Combat Hostiles . | . . . . . . . Follow-up Attacks . | . . . . . . . Damage Inflicted 4949 | 50 72 226 103 1837 1128 1533 Guns 1576 | 50 . . . 287 400 839 Cannons 573 | . . . 61 184 135 193 Explosions 2011 | . . 217 32 1283 479 . Melee 554 | . . . . . 96 458 Ramming 146 | . . 9 10 66 18 43 Kinetic 1225 | . . . . 151 535 539 Thermal 905 | 23 72 . 61 337 . 412 Explosive 2011 | . . 217 32 1283 479 . Electromagnetic 108 | 27 . . . . . 81 Impact 50 | . . . . . . 50 Slashing 504 | . . . . . 96 408 Piercing . | . . . . . . . Highest Corruption 10 | . . . . 2 1 10 Average Corruption 2 | . . . . 2 1 3 Corruption Purged . | . . . . . . . Corruption Blocked . | . . . . . . . Effects 24 | . . . . 5 8 11 Message Errors 8 | . . . . 1 2 5 Matter Fused 5 | . . . . . 2 3 Heat Flow Errors 2 | . . . . 1 1 . Energy Discharges 3 | . . . . . 2 1 Data Loss (minor) 2 | . . . . 1 . 1 Data Loss (major) 1 | . . . . 1 . . Misfires 2 | . . . . . 1 1 Weapon Failures 1 | . . . . 1 . . Overload Shots . | . . . . . . . Overflow Damage 81 | . . . . 33 6 42 Projectiles . | . . . . . . . Explosions 33 | . . . . 33 . . Melee 48 | . . . . . 6 42 Knockbacks 2 | . . . 1 . 1 . Impact 1 | . . . 1 . . . Kinetic 1 | . . . . . 1 . Secondary . | . . . . . . . Self-Inflicted Damage 154 | . . . 28 109 . 17 Shots 6 | . . . 1 5 . . Rammed 46 | . . 1 4 26 . 15 Targets Rammed 63 | . . 2 6 32 8 15 Kicked 9 | . . 1 . . 8 . Crushed 8 | . . . 2 6 . . Highest Temperature 371 | 78 263 . 317 254 137 371 Average Temperature 81 | 43 136 . 148 64 31 112 Received Heat Transfer 1689 | 24 204 9 . 522 219 711 Effects 3 | . . . 1 1 . 1 Shutdowns 1 | . . . . . . 1 Energy Bleed 1 | . . . 1 . . . Interference 1 | . . . . 1 . . Siege Activations . | . . . . . . . Robots Corrupted . | . . . . . . . Combat Hostiles . | . . . . . . . Parts Fried . | . . . . . . . Impact Corruptions . | . . . . . . . Robots Melted . | . . . . . . . Combat Hostiles . | . . . . . . . Parts Melted 1 | . . . . 1 . . Heat Transferred 1842 | 50 150 . 111 754 . 777 Parts Sabotaged . | . . . . . . . Parts Stolen . | . . . . . . . Parts Stripped . | . . . . . . . Power Chain Reactions . | . . . . . . . Alert | -11 -10 -10 -9 -8 -7 -7 ------- Run | Yrd Mat Min Mat Mat Fac Sto Peak Influence 487 | 20 29 127 307 487 271 192 Initial 221 | . 13 . 23 129 221 27 Average 123 | 3 17 45 140 236 149 88 Maximum Alert Level 2 | . . . 1 2 1 . Low Security (%) 78 | 100 100 100 77 47 67 100 Level 1 17 | . . . 22 31 32 . Level 2 3 | . . . . 20 . . Level 3 . | . . . . . . . Level 4 . | . . . . . . . Level 5 . | . . . . . . . High Security . | . . . . . . . Max Security . | . . . . . . . Squads Dispatched 11 | . 2 . . 4 4 1 Investigation 4 | . 2 . . 1 1 . Extermination 2 | . . . . . 2 . Reinforcement 2 | . . . . . 1 1 Assault . | . . . . . . . Garrison 3 | . . . . 3 . . Intercept . | . . . . . . . Searches Triggered . | . . . . . . . Construction Impeded 1 | . . . . . 1 . Haulers Reinforced 1 | . . . . . . 1 Active Scanning Responses . | . . . . . . . Cargo Convoy Interrupts . | . . . . . . . Stealth | -11 -10 -10 -9 -8 -7 -7 --------- Run | Yrd Mat Min Mat Mat Fac Sto Distress Signals 8 | . . . 1 2 2 3 Communications Jammed . | . . . . . . . Distress Signals . | . . . . . . . Times Spotted 85 | 1 3 6 10 24 18 23 Peak Tracking Total 7 | 1 3 3 3 7 7 4 Tactical Retreats 4 | . . . . 1 . 3 Traps | -11 -10 -10 -9 -8 -7 -7 ------- Run | Yrd Mat Min Mat Mat Fac Sto Traps Triggered 7 | . 2 . 1 . 3 1 Indirectly . | . . . . . . . Trap Hack Attempts . | . . . . . . . Triggered . | . . . . . . . Disarmed . | . . . . . . . Reprogrammed . | . . . . . . . Reused . | . . . . . . . Traps Extracted . | . . . . . . . Installed . | . . . . . . . Triggered . | . . . . . . . Machines | -11 -10 -10 -9 -8 -7 -7 ---------- Run | Yrd Mat Min Mat Mat Fac Sto Machines Disabled 10 | . . 4 . 3 . 3 Max in Single Turn 2 | . . 2 . 2 . 1 Machines Repaired . | . . . . . . . Machines Dismantled . | . . . . . . . Machines Sabotaged . | . . . . . . . Overloaded Fab Kills . | . . . . . . . Hacking | -11 -10 -10 -9 -8 -7 -7 --------- Run | Yrd Mat Min Mat Mat Fac Sto Machines Accessed 8 | . 1 . . 3 2 2 Terminals 5 | . 1 . . 1 1 2 Fabricators 1 | . . . . . 1 . Repair Stations . | . . . . . . . Recycling Units 2 | . . . . 2 . . Scanalyzers . | . . . . . . . Garrison Access . | . . . . . . . Total Hacks 17 | . 5 . . 8 2 2 Successful 13 | . 4 . . 5 2 2 Failed 4 | . 1 . . 3 . . Catastrophic . | . . . . . . . Database Lockouts . | . . . . . . . Manual . | . . . . . . . Terminals 9 | . 5 . . 1 1 2 Fabricators 1 | . . . . . 1 . Repair Stations . | . . . . . . . Recycling Units 7 | . . . . 7 . . Scanalyzers . | . . . . . . . Garrison Access . | . . . . . . . Terminal Hacks 8 | . 4 . . 1 1 2 Record 5 | . 4 . . . . 1 Robot Analysis 1 | . . . . 1 . . Open Door 1 | . . . . . . 1 Alert Level 1 | . . . . . 1 . Fabricator Hacks 1 | . . . . . 1 . Network Status 1 | . . . . . 1 . Repair Station Hacks . | . . . . . . . Recycling Unit Hacks 4 | . . . . 4 . . Recycle Component 2 | . . . . 2 . . Report Inventory 1 | . . . . 1 . . Retrieve Components 1 | . . . . 1 . . Scanalyzer . | . . . . . . . Garrison Access Hacks . | . . . . . . . Unauthorized Hacks . | . . . . . . . Terminals . | . . . . . . . Fabricators . | . . . . . . . Repair Stations . | . . . . . . . Recycling Units . | . . . . . . . Scanalyzers . | . . . . . . . Garrison Access . | . . . . . . . Data Cores Recovered . | . . . . . . . Used . | . . . . . . . Hacking Detections 4 | . 1 . . 2 . 1 Full Trace Events 2 | . 1 . . 1 . . Feedback Events . | . . . . . . . Feedback Blocked . | . . . . . . . Robot Schematics Acquired . | . . . . . . . Robots Built . | . . . . . . . Authchips . | . . . . . . . Time . | . . . . . . . Total Robot Build Rating . | . . . . . . . Part Schematics Acquired . | . . . . . . . Parts Built . | . . . . . . . Authchips . | . . . . . . . Time . | . . . . . . . Total Part Build Rating . | . . . . . . . Parts Repaired . | . . . . . . . Time . | . . . . . . . Parts Recycled 2 | . . . . 2 . . Recycled Matter . | . . . . . . . Retrieved Matter . | . . . . . . . Retrieved Components 1 | . . . . 1 . . Parts Scanalyzed . | . . . . . . . Part Schematics Acquired . | . . . . . . . Parts Damaged . | . . . . . . . Bothacking | -11 -10 -10 -9 -8 -7 -7 ------------ Run | Yrd Mat Min Mat Mat Fac Sto Used RIF Installer . | . . . . . . . Robots Hacked 1 | . . . . . . 1 Non-combat . | . . . . . . . Combat 1 | . . . . . . 1 Robot Hacks Applied 1 | . . . . . . 1 parse_system 1 | . . . . . . 1 Relay Couplers Released . | . . . . . . . Fabnet Peak Effective % . | . . . . . . . Robots Rewired . | . . . . . . . Allies Hacked . | . . . . . . . Hacks Repelled . | . . . . . . . Allies | -11 -10 -10 -9 -8 -7 -7 -------- Run | Yrd Mat Min Mat Mat Fac Sto Total Allies 5 | . . 5 . . . . Largest Group 5 | . . 5 4 . . . Highest-Rated Group 89 | . . 89 71 . . . Highest-Rated Ally 31 | . . 31 31 . . . Total Orders . | . . . . . . . Ally Attacks 45 | . . 5 40 . . . Total Damage 538 | . . 43 495 . . . Kills 8 | . . 1 7 . . . Allies Corrupted . | . . . . . . . Allies Melted . | . . . . . . . Intel | -11 -10 -10 -9 -8 -7 -7 ------- Run | Yrd Mat Min Mat Mat Fac Sto Robot Analysis Total 1 | . . . . 1 . . Derelict Logs Recovered 1 | . . 1 . . . . Drone Launches . | . . . . . . . Drone Recoveries . | . . . . . . . Exploration | -11 -10 -10 -9 -8 -7 -7 ------------- Run | Yrd Mat Min Mat Mat Fac Sto Turns Passed 4099 | 94 270 611 299 648 1424 753 Spaces Moved 2165 | 76 210 430 159 292 650 348 Core 60 | 24 19 3 . 8 1 5 Treads 503 | . . 138 159 206 . . Legs 969 | 52 191 289 . 78 258 101 Wheels 155 | . . . . . . 155 Hover 391 | . . . . . 391 . Flight 87 | . . . . . . 87 Fastest Speed 32 | 50 50 50 160 120 116 32 Average Speed 149 | 97 113 132 160 156 192 110 Slowest Speed 500 | 120 120 190 160 500 500 250 Overloaded Moves . | . . . . . . . Propulsion Burnouts . | . . . . . . . Robots Hopped . | . . . . . . . Cave-ins Triggered . | . . . . . . . Exploration Rate (%) 31 | 5 35 83 25 25 10 35 Regions Visited 6 Branch Regions 2 Pre-discovered Areas . | . . . . . . . Known Exits Taken 1 | . . . 1 . . . Unknown Exits Taken 5 | 1 1 1 . 1 1 . Scrap Searched 1 | . . 1 . . . . Spaces Dug . | . . . . . . . Terrain Destroyed 155 | . . 26 8 83 34 4 Melee . | . . . . . . . Projectile 4 | . . . . . . 4 AOE 151 | . . 26 8 83 34 . Terrain Rammed . | . . . . . . . Walls Destroyed . | . . . . . . . Machines Disabled . | . . . . . . . Actions | -11 -10 -10 -9 -8 -7 -7 --------- Run | Yrd Mat Min Mat Mat Fac Sto Total 2720 | 89 226 467 190 403 760 585 Wait 135 | . . 17 . 2 21 95 Move 2159 | 75 209 429 158 291 649 348 Hop . | . . . . . . . Pick Up 87 | 6 7 5 8 20 20 21 Fast Attach 9 | . . . . 2 5 2 Attach 75 | 5 3 8 7 16 16 20 Detach 2 | . . 1 . . 1 . Swap 5 | . 1 1 . 2 1 . Drop 24 | . 2 1 4 3 10 4 Fire 134 | 3 4 3 7 35 27 55 Melee 27 | . . . . . 2 25 Ram 15 | . . . . . . 15 Kick 9 | . . 1 . . 8 . Crush 39 | . . 1 6 32 . . Escape Stasis . | . . . . . . . Rewire . | . . . . . . . Trap . | . . . . . . . Miscellaneous . | . . . . . . . Route ------- -11/Scrapyard -10/Materials -10/Mines (discovered 2 exits: [*Mat x2]) -9/Materials -8/Materials -7/Factory -7/Storage History --------- Turn | Location | Event 2 | -11/Scrapyard | Met Revision 17 68 | -11/Scrapyard | Discovered new exit (range 8) 95 | -11/Scrapyard | Entered Materials 253 | -10/Materials | Discovered new exit (range 12) 317 | -10/Materials | Build established: Mutant 365 | -10/Materials | Entered Mines 394 | -10/Mines | Lost 6 parts (1p2n1u2w) 398 | -10/Mines | Assisted by bots powering up and referring to "LRC-V3" 432 | -10/Mines | Discovered new exit (range 14) 435 | -10/Mines | Assembled infested the area 440 | -10/Mines | Assisted by a Guerilla fighting off Assembled 504 | -10/Mines | Discovered new exit (range 10) 910 | -10/Mines | Learned location of 1 exit from Materials 976 | -10/Mines | Entered Materials 976 | -9/Materials | Accompanied by 4 allies 976 | -9/Materials | Evolved 2 slots: Power x1, Propulsion x1 977 | -9/Materials | Identified exit to Materials 981 | -9/Materials | Led the pair of lost Derelicts to an unsafe place 1076 | -9/Materials | Met 8R-AWN 1275 | -9/Materials | Entered another Materials area 1275 | -8/Materials | Evolved 2 slots: Power x1, Utility x1 1442 | -8/Materials | Garrison activated, responded to threat 1747 | -8/Materials | Lost 6 parts (1p2n1u2w) 1769 | -8/Materials | Core integrity fell below 50% 1773 | -8/Materials | Destroyed 9 combat bots 1816 | -8/Materials | Lost 6 parts (1p2u3w) 1906 | -8/Materials | Discovered new exit (range 3) 1923 | -8/Materials | Entered Factory 1923 | -7/Factory | Evolved 2 slots: Power x1, Weapon x1 2078 | -7/Factory | Build established: Scavenger-Mutant 2784 | -7/Factory | Discovered new exit (range 13) 2896 | -7/Factory | Build established: Scavenger-Gunner 3347 | -7/Factory | Entered Storage 3683 | -7/Storage | Lost 7 parts (1p1n3u2w) 3739 | -7/Storage | Core integrity fell below 50% 3746 | -7/Storage | Build established: Mutant 3810 | -7/Storage | Lost 4 parts (2p2w) 3911 | -7/Storage | Core integrity fell below 20% 3936 | -7/Storage | System corruption reached 10% 3970 | -7/Storage | Lost 4 parts (1n1u2w) 4100 | -7/Storage | Destroyed by Y-54 Guardian with Flak Gun Last Messages --------------- 04039_ Slug penetrates Y-54 Guardian. 04045_ Y-54 Guardian destroyed. 04047_ IOEBI9&QNQ1Y>X,OG>QEV5G&XLQNKE